[Event "Early-Titled-Tuesday-Blitz-February-13-2024"]
[Site "Chess.com"]
[Date "2024.02.13"]
[Round "10"]
[White "Bauman_Guy"]
[Black "Njal28"]
[Result "0-1"]
[WhiteElo "2893"]
[BlackElo "2999"]
[TimeControl "180+1"]
[EndTime "9:59:32 PST"]
[Termination "Njal28 won by resignation"]

1. e4 {[%clk 0:02:54.1]} 1... e5 {[%clk 0:02:57.2]} 2. Nf3 {[%clk 0:02:54.3]}
2... Nc6 {[%clk 0:02:57.5]} 3. Bb5 {[%clk 0:02:54.9]} 3... a6 {[%clk 0:02:57.7]}
4. Ba4 {[%clk 0:02:55.1]} 4... Nf6 {[%clk 0:02:58.1]} 5. O-O {[%clk 0:02:55.6]}
5... Be7 {[%clk 0:02:57.9]} 6. d3 {[%clk 0:02:55.7]} 6... b5 {[%clk 0:02:58]} 7.
Bb3 {[%clk 0:02:56.2]} 7... d6 {[%clk 0:02:58.6]} 8. a4 {[%clk 0:02:54]} 8... b4
{[%clk 0:02:58.2]} 9. a5 {[%clk 0:02:54.1]} 9... O-O {[%clk 0:02:58.4]} 10. Nbd2
{[%clk 0:02:54.7]} 10... Rb8 {[%clk 0:02:56.3]} 11. Nc4 {[%clk 0:02:52.9]} 11...
h6 {[%clk 0:02:54.8]} 12. h3 {[%clk 0:02:53.1]} 12... Be6 {[%clk 0:02:49]} 13.
Be3 {[%clk 0:02:41.2]} 13... Qc8 {[%clk 0:02:35.4]} 14. Qe2 {[%clk 0:02:39.4]}
14... Rd8 {[%clk 0:02:25]} 15. Nfd2 {[%clk 0:02:36.3]} 15... d5 {[%clk
0:02:19.6]} 16. Ba4 {[%clk 0:02:12.7]} 16... dxc4 {[%clk 0:01:45.8]} 17. Bxc6
{[%clk 0:02:11.3]} 17... Rd6 {[%clk 0:01:06]} 18. Bc5 {[%clk 0:01:52.7]} 18...
Rxc6 {[%clk 0:01:03.2]} 19. Bxe7 {[%clk 0:01:52.3]} 19... cxd3 {[%clk
0:01:01.7]} 20. cxd3 {[%clk 0:01:52.3]} 20... Nd7 {[%clk 0:00:48]} 21. Rfc1
{[%clk 0:01:45.2]} 21... Rxc1+ {[%clk 0:00:45.7]} 22. Rxc1 {[%clk 0:01:46.1]}
22... Rb5 {[%clk 0:00:44.8]} 23. Nf3 {[%clk 0:01:36.4]} 23... Qe8 {[%clk
0:00:36.5]} 24. Bh4 {[%clk 0:01:17.3]} 24... c5 {[%clk 0:00:36.9]} 25. Ra1
{[%clk 0:01:07.5]} 25... f6 {[%clk 0:00:37.4]} 26. Bg3 {[%clk 0:01:03.5]} 26...
Qd8 {[%clk 0:00:37.7]} 27. Nh4 {[%clk 0:00:56.2]} 27... Rxa5 {[%clk 0:00:36.7]}
28. Rc1 {[%clk 0:00:56.7]} 28... Ra2 {[%clk 0:00:35]} 29. Nf5 {[%clk 0:00:56]}
29... Qe8 {[%clk 0:00:17.1]} 30. Qc2 {[%clk 0:00:39.5]} 30... Bxf5 {[%clk
0:00:15]} 31. exf5 {[%clk 0:00:39.6]} 31... Qf7 {[%clk 0:00:15.8]} 32. f3 {[%clk
0:00:35.5]} 32... a5 {[%clk 0:00:15.7]} 33. Bf2 {[%clk 0:00:34.1]} 33... a4
{[%clk 0:00:16.3]} 34. Bxc5 {[%clk 0:00:30.6]} 34... Nxc5 {[%clk 0:00:14.2]} 35.
Qxc5 {[%clk 0:00:31.5]} 35... Rxb2 {[%clk 0:00:14.9]} 36. Qc8+ {[%clk
0:00:22.1]} 36... Kh7 {[%clk 0:00:15.4]} 37. Qe6 {[%clk 0:00:23]} 37... Qa7+
{[%clk 0:00:15.5]} 38. Kh1 {[%clk 0:00:18.5]} 38... Qf2 {[%clk 0:00:15.5]} 39.
Rg1 {[%clk 0:00:19.2]} 39... a3 {[%clk 0:00:10.8]} 40. Qe8 {[%clk 0:00:17.5]}
40... Qg3 {[%clk 0:00:11.2]} 41. d4 {[%clk 0:00:11.8]} 41... exd4 {[%clk
0:00:11.8]} 42. Qe4 {[%clk 0:00:09.6]} 42... a2 {[%clk 0:00:11.8]} 43. f4 {[%clk
0:00:10.3]} 43... d3 {[%clk 0:00:07.6]} 44. Rc1 {[%clk 0:00:09.8]} 44... Rb1
{[%clk 0:00:05.1]} 0-1

[Event "Early-Titled-Tuesday-Blitz-February-13-2024"]
[Site "Chess.com"]
[Date "2024.02.13"]
[Round "10"]
[White "sewlins"]
[Black "kidagent"]
[Result "0-1"]
[WhiteElo "2128"]
[BlackElo "2335"]
[TimeControl "180+1"]
[EndTime "9:59:34 PST"]
[Termination "kidagent won on time"]

1. Nf3 {[%clk 0:02:55.4]} 1... Nf6 {[%clk 0:02:59]} 2. c4 {[%clk 0:02:55.2]}
2... c6 {[%clk 0:02:58.9]} 3. g3 {[%clk 0:02:54.3]} 3... d5 {[%clk 0:02:59.3]}
4. Bg2 {[%clk 0:02:55]} 4... e6 {[%clk 0:02:59.2]} 5. O-O {[%clk 0:02:53.1]}
5... Nbd7 {[%clk 0:02:59.7]} 6. d4 {[%clk 0:02:53.2]} 6... Bd6 {[%clk
0:02:57.9]} 7. Nbd2 {[%clk 0:02:48.8]} 7... O-O {[%clk 0:02:57.7]} 8. Qc2 {[%clk
0:02:48.9]} 8... Qe7 {[%clk 0:02:56]} 9. e4 {[%clk 0:02:37]} 9... dxe4 {[%clk
0:02:55.5]} 10. Nxe4 {[%clk 0:02:37.9]} 10... Nxe4 {[%clk 0:02:55.8]} 11. Qxe4
{[%clk 0:02:38.8]} 11... Nf6 {[%clk 0:02:56.3]} 12. Qe2 {[%clk 0:02:37.5]} 12...
b6 {[%clk 0:02:51.9]} 13. Ne5 {[%clk 0:02:31.4]} 13... Bb7 {[%clk 0:02:51.6]}
14. Nxc6 {[%clk 0:02:22.2]} 14... Qc7 {[%clk 0:02:50.4]} 15. Ne5 {[%clk
0:02:19.2]} 15... Bxg2 {[%clk 0:02:47.4]} 16. Kxg2 {[%clk 0:02:20.1]} 16... Bxe5
{[%clk 0:02:42.7]} 17. dxe5 {[%clk 0:02:20.7]} 17... Nd7 {[%clk 0:02:43.3]} 18.
Bf4 {[%clk 0:02:18.6]} 18... Rac8 {[%clk 0:02:40.9]} 19. b3 {[%clk 0:02:16.1]}
19... Rfd8 {[%clk 0:02:40.9]} 20. Rad1 {[%clk 0:02:16]} 20... Nc5 {[%clk
0:02:38.1]} 21. Rd6 {[%clk 0:02:03.5]} 21... Rxd6 {[%clk 0:02:30.6]} 22. exd6
{[%clk 0:02:04.4]} 22... Qc6+ {[%clk 0:02:24.1]} 23. Qf3 {[%clk 0:01:58.3]}
23... f6 {[%clk 0:02:20.2]} 24. Rd1 {[%clk 0:01:48.8]} 24... Nd7 {[%clk
0:02:16.7]} 25. g4 {[%clk 0:01:33.5]} 25... e5 {[%clk 0:02:14.6]} 26. Bg3 {[%clk
0:01:26.4]} 26... Kf7 {[%clk 0:02:12.4]} 27. Rd5 {[%clk 0:01:23]} 27... a6
{[%clk 0:01:59]} 28. g5 {[%clk 0:01:11.7]} 28... b5 {[%clk 0:01:56.2]} 29. gxf6
{[%clk 0:01:07.7]} 29... gxf6 {[%clk 0:01:50.9]} 30. Qh5+ {[%clk 0:01:05.3]}
30... Kg8 {[%clk 0:01:48.5]} 31. Qg4+ {[%clk 0:01:03.7]} 31... Kf7 {[%clk
0:01:44.1]} 32. f3 {[%clk 0:00:51.1]} 32... bxc4 {[%clk 0:01:42]} 33. bxc4
{[%clk 0:00:52]} 33... Rd8 {[%clk 0:01:28.8]} 34. Qe4 {[%clk 0:00:49.6]} 34...
Nf8 {[%clk 0:01:26.3]} 35. c5 {[%clk 0:00:43.9]} 35... Ng6 {[%clk 0:01:23.4]}
36. Qc4 {[%clk 0:00:38.6]} 36... Kg7 {[%clk 0:01:20.3]} 37. h4 {[%clk
0:00:35.6]} 37... h5 {[%clk 0:01:19]} 38. Rd3 {[%clk 0:00:21.4]} 38... f5 {[%clk
0:01:08.8]} 39. Rb3 {[%clk 0:00:11.1]} 39... Rxd6 {[%clk 0:01:06.6]} 40. Rb7+
{[%clk 0:00:08.1]} 40... Qxb7 {[%clk 0:00:58.6]} 41. cxd6 {[%clk 0:00:08.5]}
41... Qb2+ {[%clk 0:00:57.8]} 42. Bf2 {[%clk 0:00:08.7]} 42... Nf4+ {[%clk
0:00:51.4]} 43. Kg3 {[%clk 0:00:06.4]} 43... Ne2+ {[%clk 0:00:49.4]} 44. Kh3
{[%clk 0:00:03]} 44... Nf4+ {[%clk 0:00:49.2]} 45. Kg3 {[%clk 0:00:03.6]} 45...
Ne2+ {[%clk 0:00:49.4]} 46. Kh2 {[%clk 0:00:04.1]} 46... Nd4 {[%clk 0:00:44.4]}
47. Qc7+ {[%clk 0:00:04.3]} 47... Kg6 {[%clk 0:00:42.3]} 48. Kg2 {[%clk
0:00:04.7]} 48... Qe2 {[%clk 0:00:38.8]} 49. Qb7 {[%clk 0:00:02.8]} 49... e4
{[%clk 0:00:38.9]} 50. fxe4 {[%clk 0:00:02.9]} 50... Qf3+ {[%clk 0:00:38.6]} 51.
Kg1 {[%clk 0:00:02.2]} 51... Ne2+ {[%clk 0:00:38.3]} 52. Kf1 {[%clk 0:00:02.8]}
52... Ng3+ {[%clk 0:00:36.9]} 0-1

[Event "Early-Titled-Tuesday-Blitz-February-13-2024"]
[Site "Chess.com"]
[Date "2024.02.13"]
[Round "10"]
[White "aghasiyevkamal"]
[Black "Som2310"]
[Result "0-1"]
[WhiteElo "2624"]
[BlackElo "2808"]
[TimeControl "180+1"]
[EndTime "9:59:35 PST"]
[Termination "Som2310 won on time"]

1. d4 {[%clk 0:02:56.2]} 1... Nf6 {[%clk 0:02:59.6]} 2. c4 {[%clk 0:02:54.7]}
2... g6 {[%clk 0:02:59.6]} 3. Nc3 {[%clk 0:02:53.6]} 3... d5 {[%clk 0:02:59.6]}
4. cxd5 {[%clk 0:02:53]} 4... Nxd5 {[%clk 0:02:59.7]} 5. e4 {[%clk 0:02:53.5]}
5... Nxc3 {[%clk 0:02:59.7]} 6. bxc3 {[%clk 0:02:50.7]} 6... Bg7 {[%clk
0:03:00]} 7. Bc4 {[%clk 0:02:50.4]} 7... O-O {[%clk 0:02:58.7]} 8. Ne2 {[%clk
0:02:50.1]} 8... c5 {[%clk 0:02:59]} 9. Be3 {[%clk 0:02:49.8]} 9... Nc6 {[%clk
0:02:59.2]} 10. O-O {[%clk 0:02:47.8]} 10... e6 {[%clk 0:02:59.5]} 11. Rc1
{[%clk 0:02:43.1]} 11... b6 {[%clk 0:02:57.3]} 12. Qd2 {[%clk 0:02:41.8]} 12...
cxd4 {[%clk 0:02:56.5]} 13. cxd4 {[%clk 0:02:41.1]} 13... Bb7 {[%clk 0:02:56.8]}
14. Rfd1 {[%clk 0:02:38.8]} 14... Rc8 {[%clk 0:02:56.3]} 15. Bh6 {[%clk
0:02:26.3]} 15... Bxh6 {[%clk 0:02:42.4]} 16. Qxh6 {[%clk 0:02:24.6]} 16... Qf6
{[%clk 0:02:42.4]} 17. e5 {[%clk 0:01:48.5]} 17... Qg7 {[%clk 0:02:41.1]} 18.
Qe3 {[%clk 0:01:44.3]} 18... Rfd8 {[%clk 0:02:37.9]} 19. Nf4 {[%clk 0:01:42.3]}
19... Re8 {[%clk 0:02:16.6]} 20. Bb5 {[%clk 0:01:37.7]} 20... a6 {[%clk
0:02:14.6]} 21. Bxc6 {[%clk 0:01:31.7]} 21... Bxc6 {[%clk 0:02:14.5]} 22. d5
{[%clk 0:01:12.7]} 22... exd5 {[%clk 0:02:10.9]} 23. Qxb6 {[%clk 0:01:05.1]}
23... Qxe5 {[%clk 0:02:06.5]} 24. Nd3 {[%clk 0:01:01.1]} 24... Qe6 {[%clk
0:02:01.5]} 25. Qxa6 {[%clk 0:00:36.6]} 25... Ba8 {[%clk 0:01:25.7]} 26. Qxe6
{[%clk 0:00:35.1]} 26... fxe6 {[%clk 0:01:25.9]} 27. Ne5 {[%clk 0:00:29.8]}
27... Kf8 {[%clk 0:01:21.4]} 28. f4 {[%clk 0:00:27.5]} 28... Ke7 {[%clk
0:01:21.3]} 29. Kf2 {[%clk 0:00:26.4]} 29... Kd6 {[%clk 0:01:21.3]} 30. Ke3
{[%clk 0:00:26.6]} 30... Bb7 {[%clk 0:01:18.8]} 31. Kd4 {[%clk 0:00:20.8]} 31...
Ra8 {[%clk 0:01:16.3]} 32. Rd2 {[%clk 0:00:16.2]} 32... Ra4+ {[%clk 0:01:14.1]}
33. Ke3 {[%clk 0:00:16.4]} 33... Rf8 {[%clk 0:01:10.3]} 34. g3 {[%clk
0:00:16.6]} 34... g5 {[%clk 0:01:06.5]} 35. Nc4+ {[%clk 0:00:12.1]} 35... Ke7
{[%clk 0:01:02.1]} 36. Nb6 {[%clk 0:00:12.3]} 36... Re4+ {[%clk 0:01:01.2]} 37.
Kf2 {[%clk 0:00:10.1]} 37... Kd6 {[%clk 0:00:54.8]} 38. Nc4+ {[%clk 0:00:09.2]}
38... Ke7 {[%clk 0:00:54.7]} 39. Nb6 {[%clk 0:00:09.4]} 39... Ba6 {[%clk
0:00:51.5]} 40. Rc7+ {[%clk 0:00:08.9]} 40... Kd6 {[%clk 0:00:51]} 41. Ra7
{[%clk 0:00:09.2]} 41... Bb5 {[%clk 0:00:50.7]} 42. a4 {[%clk 0:00:09.3]} 42...
Bc6 {[%clk 0:00:50.6]} 43. Rxh7 {[%clk 0:00:06.4]} 43... gxf4 {[%clk 0:00:50.4]}
44. g4 {[%clk 0:00:07]} 44... f3 {[%clk 0:00:44.2]} 45. Rh3 {[%clk 0:00:04.4]}
45... Rxg4 {[%clk 0:00:33.7]} 46. Rxf3 {[%clk 0:00:04]} 46... Rh8 {[%clk
0:00:33.1]} 47. Ke3 {[%clk 0:00:02.5]} 47... Re4+ {[%clk 0:00:32]} 48. Kd3
{[%clk 0:00:03]} 48... Rb4 {[%clk 0:00:31.7]} 49. a5 {[%clk 0:00:02.4]} 49...
Rb3+ {[%clk 0:00:31]} 50. Ke2 {[%clk 0:00:02.7]} 50... Rxh2+ {[%clk 0:00:30.7]}
51. Rf2 {[%clk 0:00:03.3]} 51... Bb5+ {[%clk 0:00:30.6]} 52. Ke1 {[%clk
0:00:02]} 52... Rh1+ {[%clk 0:00:30.6]} 0-1

[Event "Early-Titled-Tuesday-Blitz-February-13-2024"]
[Site "Chess.com"]
[Date "2024.02.13"]
[Round "10"]
[White "Iskusnyh"]
[Black "TitarovVasiliYouTube"]
[Result "1-0"]
[WhiteElo "2662"]
[BlackElo "2519"]
[TimeControl "180+1"]
[EndTime "9:59:35 PST"]
[Termination "Iskusnyh won on time"]

1. d4 {[%clk 0:03:00.9]} 1... d6 {[%clk 0:02:59.6]} 2. Nf3 {[%clk 0:02:59.9]}
2... Nf6 {[%clk 0:02:59.9]} 3. c4 {[%clk 0:02:59]} 3... Bg4 {[%clk 0:02:59.7]}
4. Qb3 {[%clk 0:02:56.2]} 4... Qc8 {[%clk 0:02:59.9]} 5. g3 {[%clk 0:02:53.6]}
5... e6 {[%clk 0:02:57.7]} 6. Bg2 {[%clk 0:02:53.1]} 6... c6 {[%clk 0:02:57.9]}
7. O-O {[%clk 0:02:49.3]} 7... Nbd7 {[%clk 0:02:56.6]} 8. Nc3 {[%clk 0:02:46.2]}
8... Bxf3 {[%clk 0:02:48.8]} 9. Bxf3 {[%clk 0:02:43.9]} 9... d5 {[%clk
0:02:49.7]} 10. Bf4 {[%clk 0:02:41]} 10... Be7 {[%clk 0:02:49]} 11. Rac1 {[%clk
0:02:39.8]} 11... dxc4 {[%clk 0:02:48.9]} 12. Qxc4 {[%clk 0:02:39.5]} 12... O-O
{[%clk 0:02:48.4]} 13. e4 {[%clk 0:02:37]} 13... Qd8 {[%clk 0:02:44]} 14. Rfd1
{[%clk 0:02:32.3]} 14... Qa5 {[%clk 0:02:43.7]} 15. a3 {[%clk 0:02:24.9]} 15...
Rfd8 {[%clk 0:02:25.9]} 16. Qb3 {[%clk 0:02:07.6]} 16... Qb6 {[%clk 0:02:20.3]}
17. Qc2 {[%clk 0:02:04.2]} 17... Qa5 {[%clk 0:02:11.4]} 18. Bd2 {[%clk 0:01:57]}
18... Qa6 {[%clk 0:02:06.1]} 19. Be3 {[%clk 0:01:52.1]} 19... Rac8 {[%clk
0:02:01.7]} 20. h4 {[%clk 0:01:51]} 20... h6 {[%clk 0:02:00.8]} 21. h5 {[%clk
0:01:49.9]} 21... Qa5 {[%clk 0:02:00]} 22. e5 {[%clk 0:01:45.8]} 22... Nd5
{[%clk 0:01:57.1]} 23. Nxd5 {[%clk 0:01:45.3]} 23... exd5 {[%clk 0:01:52.4]} 24.
Qf5 {[%clk 0:01:38.5]} 24... Nf8 {[%clk 0:01:48.8]} 25. Qg4 {[%clk 0:01:32.3]}
25... Kh8 {[%clk 0:01:42.7]} 26. Be2 {[%clk 0:01:31.3]} 26... Qc7 {[%clk
0:01:22.1]} 27. Bd3 {[%clk 0:01:28.3]} 27... Qd7 {[%clk 0:01:06.2]} 28. Qf3
{[%clk 0:01:22.3]} 28... Qe8 {[%clk 0:00:59.9]} 29. Kg2 {[%clk 0:01:18.6]} 29...
b6 {[%clk 0:00:39.7]} 30. Bf5 {[%clk 0:01:07.4]} 30... Ne6 {[%clk 0:00:39]} 31.
Qg4 {[%clk 0:01:06.2]} 31... Qg8 {[%clk 0:00:37.8]} 32. Rc2 {[%clk 0:01:01.6]}
32... c5 {[%clk 0:00:36.1]} 33. dxc5 {[%clk 0:00:55.7]} 33... bxc5 {[%clk
0:00:34.9]} 34. b4 {[%clk 0:00:47.5]} 34... d4 {[%clk 0:00:33.7]} 35. Bc1 {[%clk
0:00:47.4]} 35... cxb4 {[%clk 0:00:33.6]} 36. axb4 {[%clk 0:00:41.6]} 36... Rxc2
{[%clk 0:00:33.1]} 37. Bxc2 {[%clk 0:00:41.6]} 37... Bxb4 {[%clk 0:00:33.6]} 38.
f4 {[%clk 0:00:39.3]} 38... Rc8 {[%clk 0:00:29.4]} 39. Bd3 {[%clk 0:00:38.6]}
39... Qd8 {[%clk 0:00:23.8]} 40. f5 {[%clk 0:00:38.4]} 40... Ng5 {[%clk
0:00:23.9]} 41. f6 {[%clk 0:00:36.4]} 41... Qd5+ {[%clk 0:00:18.3]} 42. Kf2
{[%clk 0:00:35.4]} 42... Rg8 {[%clk 0:00:12.4]} 43. Bxg5 {[%clk 0:00:34.2]}
43... hxg5 {[%clk 0:00:10.4]} 44. Qf5 {[%clk 0:00:29.9]} 44... Qa2+ {[%clk
0:00:03.2]} 45. Kf3 {[%clk 0:00:28.9]} 45... g6 {[%clk 0:00:01.6]} 46. hxg6
{[%clk 0:00:28.9]} 1-0

[Event "Early-Titled-Tuesday-Blitz-February-13-2024"]
[Site "Chess.com"]
[Date "2024.02.13"]
[Round "10"]
[White "Payyappat"]
[Black "Balla_Tamas"]
[Result "1-0"]
[WhiteElo "2565"]
[BlackElo "2404"]
[TimeControl "180+1"]
[EndTime "9:59:35 PST"]
[Termination "Payyappat won on time"]

1. e4 {[%clk 0:03:00.9]} 1... c5 {[%clk 0:02:59.1]} 2. Nf3 {[%clk 0:02:57.8]}
2... Nc6 {[%clk 0:02:59.6]} 3. d4 {[%clk 0:02:58.7]} 3... cxd4 {[%clk
0:03:00.5]} 4. Nxd4 {[%clk 0:02:59.6]} 4... e5 {[%clk 0:03:01.1]} 5. Nb5 {[%clk
0:02:59.6]} 5... d6 {[%clk 0:03:01.7]} 6. c4 {[%clk 0:02:59.8]} 6... Be7 {[%clk
0:03:01.7]} 7. N1c3 {[%clk 0:03:00]} 7... a6 {[%clk 0:03:01.9]} 8. Na3 {[%clk
0:02:59.9]} 8... f5 {[%clk 0:03:02.7]} 9. Bd3 {[%clk 0:02:55.3]} 9... f4 {[%clk
0:03:02.5]} 10. Nd5 {[%clk 0:02:53.5]} 10... Nh6 {[%clk 0:03:01.7]} 11. Qh5+
{[%clk 0:02:44.1]} 11... Nf7 {[%clk 0:02:51.7]} 12. Bd2 {[%clk 0:02:39.7]} 12...
O-O {[%clk 0:02:50.5]} 13. Bc3 {[%clk 0:02:38.7]} 13... Nh6 {[%clk 0:02:25.9]}
14. h3 {[%clk 0:02:31.9]} 14... Be6 {[%clk 0:02:17.6]} 15. O-O-O {[%clk
0:02:30.2]} 15... Rc8 {[%clk 0:02:08.8]} 16. c5 {[%clk 0:02:26.5]} 16... dxc5
{[%clk 0:01:53.3]} 17. Bc4 {[%clk 0:02:24.6]} 17... Nd4 {[%clk 0:01:53]} 18.
Qxe5 {[%clk 0:02:10.4]} 18... Bd6 {[%clk 0:01:24.3]} 19. Ne7+ {[%clk 0:01:25.3]}
19... Qxe7 {[%clk 0:01:15.5]} 20. Bxe6+ {[%clk 0:01:22.8]} 20... Kh8 {[%clk
0:01:05.6]} 21. Qd5 {[%clk 0:01:21.2]} 21... b5 {[%clk 0:00:55.3]} 22. e5 {[%clk
0:01:04.1]} 22... Bb8 {[%clk 0:00:42.4]} 23. Bxc8 {[%clk 0:01:02.4]} 23... Rxc8
{[%clk 0:00:41.2]} 24. Bxd4 {[%clk 0:01:02.1]} 24... cxd4+ {[%clk 0:00:42.1]}
25. Kb1 {[%clk 0:01:01.8]} 25... Bxe5 {[%clk 0:00:38.7]} 26. Rhe1 {[%clk
0:00:58.1]} 26... Nf7 {[%clk 0:00:38.1]} 27. Rxd4 {[%clk 0:00:45.9]} 27... Qf6
{[%clk 0:00:30.7]} 28. Rde4 {[%clk 0:00:39.8]} 28... Rd8 {[%clk 0:00:16.9]} 29.
Rxe5 {[%clk 0:00:32.1]} 29... Nxe5 {[%clk 0:00:13.2]} 30. Qxe5 {[%clk
0:00:31.3]} 30... Qg6+ {[%clk 0:00:10.5]} 31. Nc2 {[%clk 0:00:26.1]} 31... h6
{[%clk 0:00:05.5]} 32. Qe4 {[%clk 0:00:23.8]} 32... Qg5 {[%clk 0:00:04.4]} 33.
Qe7 {[%clk 0:00:19.6]} 33... Qd5 {[%clk 0:00:04.2]} 34. a3 {[%clk 0:00:17.5]}
34... a5 {[%clk 0:00:03]} 35. Qe4 {[%clk 0:00:17.1]} 35... Qd7 {[%clk
0:00:02.6]} 36. Qxf4 {[%clk 0:00:14.5]} 36... b4 {[%clk 0:00:02.7]} 37. axb4
{[%clk 0:00:13.8]} 37... Qa4 {[%clk 0:00:02.4]} 38. Qc7 {[%clk 0:00:11]} 38...
Ra8 {[%clk 0:00:01.6]} 39. Rd1 {[%clk 0:00:08.4]} 39... axb4 {[%clk 0:00:01.2]}
40. Rd8+ {[%clk 0:00:08.8]} 40... Rxd8 {[%clk 0:00:01.6]} 41. Qxd8+ {[%clk
0:00:09.7]} 41... Kh7 {[%clk 0:00:02.1]} 42. Qd3+ {[%clk 0:00:10.2]} 42... Kh8
{[%clk 0:00:02.2]} 43. Nd4 {[%clk 0:00:10.7]} 1-0

[Event "Early-Titled-Tuesday-Blitz-February-13-2024"]
[Site "Chess.com"]
[Date "2024.02.13"]
[Round "10"]
[White "bilosuvenosu06"]
[Black "KacperKacprzak"]
[Result "0-1"]
[WhiteElo "2537"]
[BlackElo "2725"]
[TimeControl "180+1"]
[EndTime "9:59:36 PST"]
[Termination "KacperKacprzak won by checkmate"]

1. d4 {[%clk 0:02:37.9]} 1... Nf6 {[%clk 0:02:59.7]} 2. c4 {[%clk 0:02:37.8]}
2... e6 {[%clk 0:02:59.9]} 3. Nc3 {[%clk 0:02:37.9]} 3... d5 {[%clk 0:02:56.5]}
4. Bg5 {[%clk 0:02:37.7]} 4... Be7 {[%clk 0:02:54.6]} 5. e3 {[%clk 0:02:38.1]}
5... O-O {[%clk 0:02:53.9]} 6. Nf3 {[%clk 0:02:38.6]} 6... h6 {[%clk 0:02:51.3]}
7. Bf4 {[%clk 0:02:38.4]} 7... Nbd7 {[%clk 0:02:50]} 8. Bd3 {[%clk 0:02:38.4]}
8... dxc4 {[%clk 0:02:48.9]} 9. Bxc4 {[%clk 0:02:38.5]} 9... a6 {[%clk
0:02:49.8]} 10. O-O {[%clk 0:02:37.9]} 10... b5 {[%clk 0:02:49.9]} 11. Bd3
{[%clk 0:02:35.4]} 11... Bb7 {[%clk 0:02:50.3]} 12. Rc1 {[%clk 0:02:33.9]} 12...
c5 {[%clk 0:02:50]} 13. Bb1 {[%clk 0:02:33.6]} 13... Rc8 {[%clk 0:02:48]} 14. h3
{[%clk 0:02:29]} 14... Qb6 {[%clk 0:02:48.4]} 15. Ne5 {[%clk 0:02:27.8]} 15...
Rfd8 {[%clk 0:02:47.9]} 16. Qd3 {[%clk 0:02:08.5]} 16... cxd4 {[%clk 0:02:19.3]}
17. exd4 {[%clk 0:02:08.5]} 17... Nf8 {[%clk 0:02:17.6]} 18. Rfd1 {[%clk
0:02:03.3]} 18... b4 {[%clk 0:02:05.1]} 19. Na4 {[%clk 0:01:59.5]} 19... Qa5
{[%clk 0:02:05.4]} 20. b3 {[%clk 0:01:57.7]} 20... Qd5 {[%clk 0:02:02.8]} 21.
Nf3 {[%clk 0:01:54.6]} 21... Qh5 {[%clk 0:01:58.7]} 22. Ne5 {[%clk 0:01:48.1]}
22... Be4 {[%clk 0:01:52]} 23. Qxa6 {[%clk 0:01:35.8]} 23... Rxc1 {[%clk
0:01:42.5]} 24. Rxc1 {[%clk 0:01:35.4]} 24... Bxb1 {[%clk 0:01:41.9]} 25. Rxb1
{[%clk 0:01:35.9]} 25... Rxd4 {[%clk 0:01:40.9]} 26. Bg3 {[%clk 0:01:14.5]}
26... Ne4 {[%clk 0:01:35.4]} 27. Nf3 {[%clk 0:01:12.6]} 27... Rd5 {[%clk
0:01:29.6]} 28. Qe2 {[%clk 0:01:09.8]} 28... Nxg3 {[%clk 0:01:28.8]} 29. fxg3
{[%clk 0:01:10.7]} 29... Qg6 {[%clk 0:01:28.6]} 30. Rd1 {[%clk 0:01:10.1]} 30...
Rxd1+ {[%clk 0:01:26.8]} 31. Qxd1 {[%clk 0:01:11]} 31... Qxg3 {[%clk 0:01:27.1]}
32. Nb2 {[%clk 0:01:08.7]} 32... Ng6 {[%clk 0:01:26.5]} 33. Nd3 {[%clk
0:01:06.5]} 33... Qd6 {[%clk 0:01:14]} 34. Qd2 {[%clk 0:01:03.6]} 34... Qb6+
{[%clk 0:01:12.7]} 35. Kh1 {[%clk 0:01:02.7]} 35... Nf8 {[%clk 0:01:08.6]} 36.
Nde5 {[%clk 0:01:01.3]} 36... Qa6 {[%clk 0:01:06]} 37. Nc4 {[%clk 0:01:00]}
37... Qa7 {[%clk 0:01:06.6]} 38. Nfe5 {[%clk 0:00:58.4]} 38... Qc5 {[%clk
0:00:53.9]} 39. Nd3 {[%clk 0:00:55.2]} 39... Qd4 {[%clk 0:00:52.1]} 40. Nde5
{[%clk 0:00:42.4]} 40... Qe4 {[%clk 0:00:44.9]} 41. Nd3 {[%clk 0:00:37.4]} 41...
Ng6 {[%clk 0:00:40.7]} 42. Qe3 {[%clk 0:00:34.1]} 42... Qd5 {[%clk 0:00:38.6]}
43. Qe2 {[%clk 0:00:28.4]} 43... Qd4 {[%clk 0:00:34.4]} 44. Qe3 {[%clk 0:00:28]}
44... Qa1+ {[%clk 0:00:34.1]} 45. Kh2 {[%clk 0:00:25]} 45... Qxa2 {[%clk
0:00:32]} 46. Nc1 {[%clk 0:00:20.4]} 46... Qc2 {[%clk 0:00:29.9]} 47. Ne2 {[%clk
0:00:20.3]} 47... Bf6 {[%clk 0:00:26.8]} 48. Ng3 {[%clk 0:00:17.4]} 48... Nh4
{[%clk 0:00:24.9]} 49. Qe4 {[%clk 0:00:15.6]} 49... Qxb3 {[%clk 0:00:20.5]} 50.
Nd6 {[%clk 0:00:15.7]} 50... Qd5 {[%clk 0:00:18.5]} 51. Qxb4 {[%clk 0:00:14.2]}
51... Qxg2# {[%clk 0:00:15.8]} 0-1